[Event "Allsvenskan Div I 3 2023/2024: SS Manhem II - Varbergs SK"]
[Site "Goteborgs schackcentrum, Vegatan 20, Gothenburg, Sweden"]
[Date "2023.12.03"]
[Round "1.1"]
[White "Wahlstrom, Lennart"]
[Black "Berggren Torell, Harald"]
[Result "1/2-1/2"]
[TimeControl "90 minutes for 40 moves + 30 minutes for the rest of the game + 30 seconds per move from move one."]
[WhiteFideId "1706829"]
[BlackFideId "1714031"]
[WhiteElo "2093"]
[BlackElo "2053"]

1. e4 {[%clk 01:30:56]} {[%emt 00:00:04]} d6 {[%clk 01:30:52]} {[%emt
00:00:09]} 2. d4 {[%clk 01:31:12]} {[%emt 00:00:13]} Nf6 {[%clk 01:31:04]}
{[%emt 00:00:20]} 3. Nc3 {[%clk 01:31:28]} {[%emt 00:00:13]} g6 {[%clk
01:31:29]} {[%emt 00:00:05]} 4. Nf3 {[%clk 01:31:29]} {[%emt 00:00:28]} Bg7
{[%clk 01:31:25]} {[%emt 00:00:35]} 5. Be2 {[%clk 01:31:37]} {[%emt 00:00:21]}
O-O {[%clk 01:28:17]} {[%emt 00:03:38]} 6. O-O {[%clk 01:31:25]} {[%emt
00:00:42]} Nc6 {[%clk 01:27:44]} {[%emt 00:01:02]} 7. h3 {[%clk 01:22:33]}
{[%emt 00:09:23]} e5 {[%clk 01:25:50]} {[%emt 00:02:25]} 8. dxe5 {[%clk
01:22:23]} {[%emt 00:00:39]} dxe5 {[%clk 01:25:41]} {[%emt 00:00:39]} 9. Qxd8
{[%clk 01:22:02]} {[%emt 00:00:50]} Nxd8 {[%clk 01:11:31]} {[%emt 00:14:41]} 10.
Be3 {[%clk 01:19:09]} {[%emt 00:03:23]} c6 {[%clk 01:05:27]} {[%emt 00:06:34]}
11. Rfd1 {[%clk 01:14:14]} {[%emt 00:05:25]} Re8 {[%clk 00:56:52]} {[%emt
00:09:05]} 12. Nxe5 {[%clk 01:03:09]} {[%emt 00:11:34]} Nxe4 {[%clk 00:54:20]}
{[%emt 00:03:02]} 13. Nxe4 {[%clk 01:03:26]} {[%emt 00:00:13]} Bxe5 {[%clk
00:54:29]} {[%emt 00:00:22]} 14. Nd6 {[%clk 01:00:09]} {[%emt 00:03:46]} Re7
{[%clk 00:42:42]} {[%emt 00:12:18]} 15. Nxc8 {[%clk 00:50:19]} {[%emt
00:10:19]} Rxc8 {[%clk 00:42:54]} {[%emt 00:00:19]} 16. c3 {[%clk 00:45:49]}
{[%emt 00:04:59]} Bc7 {[%clk 00:24:24]} {[%emt 00:19:00]} 17. Kf1 {[%clk
00:36:06]} {[%emt 00:10:14]} Ne6 {[%clk 00:22:37]} {[%emt 00:02:17]} 18. Bc4
{[%clk 00:25:42]} {[%emt 00:10:53]} Rce8 {[%clk 00:10:46]} {[%emt 00:12:21]} 19.
g3 {[%clk 00:20:06]} {[%emt 00:06:06]} Kg7 {[%clk 00:06:57]} {[%emt 00:04:20]}
20. Kg2 {[%clk 00:16:22]} {[%emt 00:04:14]} b6 {[%clk 00:06:24]} {[%emt
00:01:03]} 21. Rd2 {[%clk 00:14:02]} {[%emt 00:02:48]} f5 {[%clk 00:04:15]}
{[%emt 00:02:41]} 22. Bxe6 {[%clk 00:12:32]} {[%emt 00:02:00]} Rxe6 {[%clk
00:04:36]} {[%emt 00:00:09]} 23. Rd7+ {[%clk 00:12:30]} {[%emt 00:00:31]} R8e7
{[%clk 00:03:35]} {[%emt 00:01:32]} 24. Rad1 {[%clk 00:12:45]} {[%emt
00:00:14]} Be5 {[%clk 00:02:56]} {[%emt 00:01:09]} 25. a4 {[%clk 00:10:45]}
{[%emt 00:02:30]} Kf7 {[%clk 00:02:31]} {[%emt 00:00:56]} 26. a5 {[%clk
00:09:49]} {[%emt 00:01:25]} c5 {[%clk 00:01:36]} {[%emt 00:01:26]} 27. axb6
{[%clk 00:08:03]} {[%emt 00:02:15]} axb6 {[%clk 00:01:57]} {[%emt 00:00:10]} 28.
Bg5 {[%clk 00:06:04]} {[%emt 00:02:28]} Bf6 {[%clk 00:02:16]} {[%emt 00:00:11]}
29. Bxf6 {[%clk 00:04:37]} {[%emt 00:01:57]} Kxf6 {[%clk 00:01:57]} {[%emt
00:00:50]} 1/2-1/2

[Event "Allsvenskan Div I 3 2023/2024: SS Manhem II - Varbergs SK"]
[Site "Goteborgs schackcentrum, Vegatan 20, Gothenburg, Sweden"]
[Date "2023.12.03"]
[Round "1.2"]
[White "Svensson, Lars"]
[Black "Eriksson, Kristian"]
[Result "1/2-1/2"]
[TimeControl "90 minutes for 40 moves + 30 minutes for the rest of the game + 30 seconds per move from move one."]
[WhiteFideId "1734466"]
[BlackFideId "1705172"]
[WhiteElo "2062"]
[BlackElo "2038"]

1. d4 {[%clk 01:30:49]} {[%emt 00:00:10]} Nf6 {[%clk 01:30:39]} {[%emt
00:00:21]} 2. Nf3 {[%clk 01:31:00]} {[%emt 00:00:19]} e6 {[%clk 01:30:28]}
{[%emt 00:00:40]} 3. c4 {[%clk 01:31:18]} {[%emt 00:00:12]} Bb4+ {[%clk
01:30:22]} {[%emt 00:00:36]} 4. Bd2 {[%clk 01:30:55]} {[%emt 00:00:53]} c5
{[%clk 01:29:50]} {[%emt 00:01:03]} 5. e3 {[%clk 01:29:33]} {[%emt 00:01:52]}
O-O {[%clk 01:26:27]} {[%emt 00:03:52]} 6. Bd3 {[%clk 01:28:52]} {[%emt
00:01:11]} b6 {[%clk 01:23:55]} {[%emt 00:03:03]} 7. O-O {[%clk 01:26:57]}
{[%emt 00:02:25]} Bb7 {[%clk 01:22:47]} {[%emt 00:01:38]} 8. a3 {[%clk
01:25:17]} {[%emt 00:02:10]} Bxd2 {[%clk 01:23:03]} {[%emt 00:00:13]} 9. Nbxd2
{[%clk 01:25:33]} {[%emt 00:00:15]} cxd4 {[%clk 01:19:14]} {[%emt 00:04:19]} 10.
Nxd4 {[%clk 01:16:54]} {[%emt 00:09:09]} Nc6 {[%clk 01:15:38]} {[%emt
00:04:05]} 11. N2f3 {[%clk 01:12:22]} {[%emt 00:05:01]} Nxd4 {[%clk 01:11:01]}
{[%emt 00:05:08]} 12. Nxd4 {[%clk 01:09:50]} {[%emt 00:03:03]} d5 {[%clk
01:07:06]} {[%emt 00:04:24]} 13. Qe2 {[%clk 01:01:15]} {[%emt 00:09:06]} Rc8
{[%clk 01:00:23]} {[%emt 00:07:13]} 14. Rfd1 {[%clk 00:59:48]} {[%emt
00:01:57]} Qe7 {[%clk 00:59:34]} {[%emt 00:01:18]} 15. Rac1 {[%clk 00:50:04]}
{[%emt 00:10:13]} g6 {[%clk 00:56:31]} {[%emt 00:03:33]} 16. cxd5 {[%clk
00:47:04]} {[%emt 00:03:31]} Nxd5 {[%clk 00:52:52]} {[%emt 00:04:07]} 1/2-1/2

[Event "Allsvenskan Div I 3 2023/2024: SS Manhem II - Varbergs SK"]
[Site "Goteborgs schackcentrum, Vegatan 20, Gothenburg, Sweden"]
[Date "2023.12.03"]
[Round "1.3"]
[White "Warefelt, Niclas"]
[Black "Bengtsson, Jessica"]
[Result "1/2-1/2"]
[TimeControl "90 minutes for 40 moves + 30 minutes for the rest of the game + 30 seconds per move from move one."]
[BlackTitle "WFM"]
[WhiteFideId "1731890"]
[BlackFideId "1711083"]
[WhiteElo "1947"]
[BlackElo "2046"]

1. d4 {[%clk 01:30:52]} {[%emt 00:00:07]} Nf6 {[%clk 01:30:37]} {[%emt
00:00:23]} 2. Nf3 {[%clk 01:30:33]} {[%emt 00:00:49]} d5 {[%clk 01:30:54]}
{[%emt 00:00:13]} 3. e3 {[%clk 01:30:27]} {[%emt 00:00:36]} e6 {[%clk
01:28:56]} {[%emt 00:02:28]} 4. Nbd2 {[%clk 01:28:13]} {[%emt 00:02:43]} c5
{[%clk 01:28:34]} {[%emt 00:00:53]} 5. Bb5+ {[%clk 01:26:57]} {[%emt 00:01:47]}
Bd7 {[%clk 01:25:10]} {[%emt 00:03:53]} 6. Bxd7+ {[%clk 01:24:33]} {[%emt
00:02:54]} Nbxd7 {[%clk 01:25:07]} {[%emt 00:00:33]} 7. O-O {[%clk 01:24:40]}
{[%emt 00:00:23]} Rc8 {[%clk 01:22:08]} {[%emt 00:03:29]} 8. Re1 {[%clk
01:17:28]} {[%emt 00:07:42]} Be7 {[%clk 01:20:26]} {[%emt 00:02:12]} 9. b3
{[%clk 01:14:16]} {[%emt 00:03:43]} b5 {[%clk 01:12:28]} {[%emt 00:08:26]} 10.
dxc5 {[%clk 01:07:58]} {[%emt 00:06:49]} Bxc5 {[%clk 01:02:13]} {[%emt
00:10:45]} 11. Bb2 {[%clk 01:05:21]} {[%emt 00:03:08]} O-O {[%clk 01:02:13]}
{[%emt 00:00:30]} 12. Ne5 {[%clk 00:58:00]} {[%emt 00:07:50]} Bd6 {[%clk
00:57:23]} {[%emt 00:05:20]} 13. Nxd7 {[%clk 00:51:20]} {[%emt 00:07:10]} Nxd7
{[%clk 00:57:43]} {[%emt 00:00:10]} 14. Nf3 {[%clk 00:47:54]} {[%emt 00:03:56]}
Qc7 {[%clk 00:49:42]} {[%emt 00:08:31]} 15. Rc1 {[%clk 00:46:23]} {[%emt
00:02:01]} Qa5 {[%emt 00:01:39]} 16. Qd4 {[%clk 00:40:45]} {[%emt 00:04:44]}
Nf6 {[%clk 00:48:24]} {[%emt 00:02:03]} 17. Red1 {[%clk 00:31:29]} {[%emt
00:09:45]} Rfd8 {[%clk 00:46:49]} {[%emt 00:02:05]} 18. Ne5 {[%clk 00:26:30]}
{[%emt 00:05:29]} Bc5 {[%clk 00:44:23]} {[%emt 00:02:57]} 19. Qh4 {[%clk
00:25:19]} {[%emt 00:01:40]} Ba3 {[%clk 00:41:29]} {[%emt 00:03:25]} 20. Qd4
{[%clk 00:21:43]} {[%emt 00:04:07]} Bc5 {[%clk 00:37:06]} {[%emt 00:04:52]} 21.
Qh4 {[%clk 00:20:19]} {[%emt 00:01:53]} Ba3 {[%clk 00:28:00]} {[%emt 00:09:37]}
22. Qd4 {[%clk 00:20:04]} {[%emt 00:00:45]} Bc5 {[%clk 00:22:28]} 1/2-1/2

[Event "Allsvenskan Div I 3 2023/2024: SS Manhem II - Varbergs SK"]
[Site "Goteborgs schackcentrum, Vegatan 20, Gothenburg, Sweden"]
[Date "2023.12.03"]
[Round "1.4"]
[White "Lisander, Stefan"]
[Black "Martinsson, Erik"]
[Result "1/2-1/2"]
[TimeControl "90 minutes for 40 moves + 30 minutes for the rest of the game + 30 seconds per move from move one."]
[WhiteFideId "1711733"]
[BlackFideId "1731912"]
[WhiteElo "2029"]
[BlackElo "1784"]

1. e4 {[%clk 01:30:29]} {[%emt 00:00:30]} d5 {[%clk 01:30:28]} {[%emt
00:00:32]} 2. exd5 {[%clk 01:30:47]} {[%emt 00:00:13]} Nf6 {[%clk 01:30:48]}
{[%emt 00:00:09]} 3. d4 {[%clk 01:31:09]} {[%emt 00:00:08]} Nxd5 {[%clk
01:30:41]} {[%emt 00:00:38]} 4. Nf3 {[%clk 01:30:58]} {[%emt 00:00:41]} Bg4
{[%clk 01:29:37]} {[%emt 00:01:34]} 5. Be2 {[%clk 01:31:04]} {[%emt 00:00:24]}
e6 {[%clk 01:27:11]} {[%emt 00:02:55]} 6. O-O {[%clk 01:31:25]} {[%emt
00:00:10]} Be7 {[%clk 01:23:28]} {[%emt 00:04:13]} 7. c4 {[%clk 01:31:11]}
{[%emt 00:00:44]} Nb6 {[%clk 01:21:22]} {[%emt 00:02:33]} 8. Be3 {[%clk
01:30:52]} {[%emt 00:00:51]} O-O {[%clk 01:18:49]} {[%emt 00:03:04]} 9. Nbd2
{[%clk 01:29:20]} {[%emt 00:02:01]} N8d7 {[%clk 01:17:21]} {[%emt 00:01:58]} 10.
Ne5 {[%clk 01:24:20]} {[%emt 00:05:30]} Bxe2 {[%clk 01:09:28]} {[%emt
00:08:23]} 11. Qxe2 {[%clk 01:24:43]} {[%emt 00:00:07]} c5 {[%clk 01:07:42]}
{[%emt 00:02:17]} 12. Rfd1 {[%clk 01:22:33]} {[%emt 00:02:40]} Qc7 {[%clk
00:59:47]} {[%emt 00:08:24]} 13. Nxd7 {[%clk 01:20:02]} {[%emt 00:03:01]} Nxd7
{[%clk 00:59:56]} {[%emt 00:00:21]} 14. dxc5 {[%clk 01:20:12]} {[%emt
00:00:21]} Nxc5 {[%clk 00:55:18]} {[%emt 00:05:07]} 15. Rac1 {[%clk 01:20:18]}
{[%emt 00:00:24]} Rfd8 {[%clk 00:47:22]} {[%emt 00:08:26]} 16. Nf3 {[%clk
01:20:36]} {[%emt 00:00:12]} a6 {[%clk 00:41:20]} {[%emt 00:06:32]} 17. b4
{[%clk 01:18:56]} {[%emt 00:02:10]} Nd7 {[%clk 00:40:52]} {[%emt 00:00:59]} 18.
c5 {[%clk 01:19:04]} {[%emt 00:00:21]} Nf6 {[%clk 00:39:50]} {[%emt 00:01:33]}
19. a4 {[%clk 01:18:46]} {[%emt 00:00:47]} Nd5 {[%clk 00:38:40]} {[%emt
00:01:40]} 20. Rc4 {[%clk 01:14:05]} {[%emt 00:05:09]} Nxe3 {[%clk 00:32:02]}
{[%emt 00:07:09]} 21. fxe3 {[%clk 01:13:50]} {[%emt 00:00:46]} Qc6 {[%clk
00:30:37]} {[%emt 00:01:56]} 22. Rxd8+ {[%clk 01:11:15]} {[%emt 00:02:02]} Rxd8
{[%clk 00:30:29]} {[%emt 00:01:40]} 23. Qc2 {[%clk 01:11:35]} {[%emt 00:00:10]}
Bf6 {[%clk 00:22:40]} {[%emt 00:08:20]} 24. Qb3 {[%clk 01:02:41]} {[%emt
00:09:24]} Qd5 {[%clk 00:16:30]} {[%emt 00:06:39]} 25. b5 {[%clk 01:02:51]}
{[%emt 00:00:21]} axb5 {[%clk 00:15:45]} {[%emt 00:01:15]} 26. axb5 {[%clk
01:03:13]} {[%emt 00:00:07]} Qd1+ {[%clk 00:13:43]} {[%emt 00:02:32]} 27. Qxd1
{[%clk 01:03:25]} {[%emt 00:00:18]} Rxd1+ {[%clk 00:14:05]} {[%emt 00:00:08]}
28. Kf2 {[%clk 01:03:46]} {[%emt 00:00:10]} Rd8 {[%clk 00:14:07]} {[%emt
00:00:28]} 29. c6 {[%clk 01:04:01]} {[%emt 00:00:16]} bxc6 {[%clk 00:14:23]}
{[%emt 00:00:14]} 30. bxc6 {[%clk 00:59:28]} {[%emt 00:05:03]} Kf8 {[%clk
00:12:35]} {[%emt 00:02:17]} 31. e4 {[%clk 00:58:24]} {[%emt 00:01:34]} e5
{[%clk 00:12:09]} {[%emt 00:00:57]} 32. Rc5 {[%clk 00:57:53]} {[%emt 00:00:56]}
Rc8 {[%clk 00:11:44]} {[%emt 00:00:59]} 33. Nxe5 {[%clk 00:57:35]} {[%emt
00:00:48]} Bxe5 {[%clk 00:11:59]} {[%emt 00:00:16]} 34. Rxe5 {[%clk 00:57:59]}
{[%emt 00:00:06]} Rxc6 {[%clk 00:12:21]} {[%emt 00:00:07]} 35. Ra5 {[%clk
00:58:09]} {[%emt 00:00:20]} Ke7 {[%clk 00:11:14]} {[%emt 00:01:37]} 36. Kf3
{[%clk 00:58:19]} {[%emt 00:00:19]} Ke8 {[%clk 00:10:35]} {[%emt 00:00:35]}
1/2-1/2

[Event "Allsvenskan Div I 3 2023/2024: SS Manhem II - Varbergs SK"]
[Site "Goteborgs schackcentrum, Vegatan 20, Gothenburg, Sweden"]
[Date "2023.12.03"]
[Round "1.5"]
[White "Lennermo, Viktor"]
[Black "Abrahamsson, Patrik"]
[Result "0-1"]
[TimeControl "90 minutes for 40 moves + 30 minutes for the rest of the game + 30 seconds per move from move one."]
[WhiteFideId "1776398"]
[BlackFideId "1716484"]
[WhiteElo "1720"]
[BlackElo "1929"]

1. e4 {[%clk 01:30:55]} {[%emt 00:00:05]} d5 {[%clk 01:30:46]} {[%emt
00:00:15]} 2. exd5 {[%clk 01:31:21]} {[%emt 00:00:05]} Nf6 {[%clk 01:31:09]}
{[%emt 00:00:06]} 3. d4 {[%clk 01:30:49]} {[%emt 00:01:01]} Nxd5 {[%clk
01:31:29]} {[%emt 00:00:10]} 4. c4 {[%clk 01:31:07]} {[%emt 00:00:11]} Nb6
{[%clk 01:31:54]} {[%emt 00:00:06]} 5. Nc3 {[%clk 01:30:34]} {[%emt 00:01:03]}
e5 {[%clk 01:32:01]} {[%emt 00:00:23]} 6. dxe5 {[%clk 01:27:53]} {[%emt
00:03:10]} Qxd1+ {[%clk 01:30:02]} {[%emt 00:02:29]} 7. Kxd1 {[%clk 01:21:34]}
{[%emt 00:06:49]} Nc6 {[%clk 01:26:28]} {[%emt 00:04:05]} 8. f4 {[%clk
01:10:14]} {[%emt 00:11:49]} Bf5 {[%clk 01:22:51]} {[%emt 00:04:07]} 9. Be3
{[%clk 01:03:43]} {[%emt 00:07:00]} O-O-O+ {[%clk 01:18:04]} {[%emt 00:05:18]}
10. Ke1 {[%clk 01:03:58]} {[%emt 00:00:15]} Nb4 {[%clk 01:15:49]} {[%emt
00:02:46]} 11. Rd1 {[%clk 00:55:38]} {[%emt 00:08:49]} Be7 {[%clk 01:01:23]}
{[%emt 00:14:57]} 12. Be2 {[%clk 00:44:54]} {[%emt 00:11:13]} Nc2+ {[%clk
00:51:16]} {[%emt 00:10:38]} 13. Kf2 {[%clk 00:45:00]} {[%emt 00:00:23]} Nxe3
{[%clk 00:50:27]} {[%emt 00:01:20]} 14. Kxe3 {[%clk 00:45:16]} {[%emt
00:00:14]} g5 {[%clk 00:47:05]} {[%emt 00:03:52]} 15. g3 {[%clk 00:34:40]}
{[%emt 00:11:06]} g4 {[%clk 00:45:50]} {[%emt 00:01:44]} 16. Nd5 {[%clk
00:18:39]} {[%emt 00:16:31]} Bc5+ {[%clk 00:45:35]} {[%emt 00:00:46]} 17. Kd2
{[%clk 00:17:46]} {[%emt 00:01:24]} c6 {[%clk 00:44:28]} {[%emt 00:01:36]} 18.
Kc3 {[%clk 00:14:54]} {[%emt 00:03:21]} cxd5 {[%clk 00:43:02]} {[%emt
00:01:56]} 19. cxd5 {[%clk 00:14:57]} {[%emt 00:00:28]} Nxd5+ {[%clk 00:42:55]}
{[%emt 00:00:37]} 20. Kb3 {[%clk 00:13:14]} {[%emt 00:02:12]} Kb8 {[%clk
00:30:14]} {[%emt 00:13:11]} 21. h3 {[%clk 00:12:44]} {[%emt 00:01:00]} h5
{[%clk 00:25:50]} {[%emt 00:04:54]} 22. hxg4 {[%clk 00:13:04]} {[%emt
00:00:11]} hxg4 {[%clk 00:25:53]} {[%emt 00:00:26]} 23. Rxh8 {[%clk 00:13:24]}
Rxh8 {[%clk 00:26:14]} {[%emt 00:00:19]} 24. Rxd5 {[%clk 00:13:40]} {[%emt
00:00:14]} Be6 {[%clk 00:25:28]} {[%emt 00:01:16]} 25. Bc4 {[%clk 00:13:35]}
{[%emt 00:00:32]} Bxg1 {[%clk 00:25:21]} {[%emt 00:00:39]} 26. Rd6 {[%clk
00:09:24]} {[%emt 00:04:41]} Rh3 {[%clk 00:19:14]} {[%emt 00:06:37]} 27. Bxe6
{[%clk 00:09:41]} {[%emt 00:00:13]} Rxg3+ {[%clk 00:19:13]} {[%emt 00:00:32]}
28. Kc4 {[%clk 00:09:48]} {[%emt 00:00:23]} fxe6 {[%clk 00:19:12]} {[%emt
00:00:31]} 29. Rxe6 {[%clk 00:09:56]} {[%emt 00:00:22]} Rf3 {[%clk 00:19:22]}
{[%emt 00:00:19]} 30. Rf6 {[%clk 00:07:22]} {[%emt 00:03:05]} Kc7 {[%clk
00:14:58]} {[%emt 00:04:54]} 31. Kd5 {[%clk 00:07:31]} {[%emt 00:00:20]} g3
{[%clk 00:14:04]} {[%emt 00:01:24]} 32. e6 {[%clk 00:04:26]} {[%emt 00:03:35]}
Rd3+ {[%clk 00:08:28]} {[%emt 00:06:06]} 33. Ke4 {[%clk 00:04:40]} {[%emt
00:00:17]} Re3+ {[%clk 00:08:39]} {[%emt 00:00:19]} 34. Kd5 {[%clk 00:04:10]}
{[%emt 00:01:00]} g2 {[%clk 00:08:34]} {[%emt 00:00:35]} 35. Rg6 {[%clk
00:03:46]} {[%emt 00:00:53]} Re2 {[%clk 00:07:26]} {[%emt 00:01:39]} 36. f5
{[%clk 00:03:49]} {[%emt 00:00:26]} Bh2 {[%clk 00:07:10]} {[%emt 00:00:45]} 37.
f6 {[%clk 00:04:08]} {[%emt 00:00:12]} Rd2+ {[%clk 00:03:50]} {[%emt 00:03:50]}
38. Kc4 {[%clk 00:01:45]} {[%emt 00:02:54]} Rxb2 {[%clk 00:01:35]} {[%emt
00:02:45]} 39. f7 {[%clk 00:01:57]} {[%emt 00:00:17]} b5+ {[%clk 00:01:47]}
{[%emt 00:00:19]} 40. Kd5 {[%clk 00:01:21]} {[%emt 00:01:05]} Rd2+ {[%clk
00:02:04]} {[%emt 00:00:14]} 41. Kc5 {[%clk 00:00:48]} {[%emt 00:01:03]} Bd6+
{[%clk 00:01:22]} {[%emt 00:01:12]} 42. Kxb5 {[%clk 00:28:58]} {[%emt
00:02:20]} Rb2+ {[%clk 00:28:49]} {[%emt 00:03:03]} 43. Kc4 {[%clk 00:29:15]}
{[%emt 00:00:12]} Rxa2 {[%clk 00:28:38]} {[%emt 00:00:42]} 44. Rg7 {[%clk
00:23:10]} {[%emt 00:06:35]} Kc6 {[%clk 00:28:21]} {[%emt 00:00:47]} 45. Kb3
{[%clk 00:22:59]} {[%emt 00:00:41]} Re2 {[%clk 00:24:52]} {[%emt 00:03:58]} 46.
Rg6 {[%clk 00:22:09]} {[%emt 00:01:20]} Kd5 {[%clk 00:24:02]} {[%emt 00:01:21]}
47. Ka4 {[%clk 00:22:03]} {[%emt 00:00:35]} Rxe6 {[%clk 00:21:34]} {[%emt
00:02:58]} 48. Rxg2 {[%clk 00:22:13]} {[%emt 00:00:20]} Rf6 {[%clk 00:21:12]}
{[%emt 00:00:53]} 49. Rg7 {[%clk 00:21:19]} {[%emt 00:01:21]} Bf8 {[%clk
00:20:08]} {[%emt 00:01:36]} 50. Rh7 {[%clk 00:20:37]} {[%emt 00:01:11]} Ke6
{[%clk 00:20:28]} {[%emt 00:00:12]} 51. Kb5 {[%clk 00:20:50]} {[%emt 00:00:16]}
Rxf7 {[%clk 00:20:32]} {[%emt 00:00:26]} 52. Rh1 {[%clk 00:20:42]} {[%emt
00:00:39]} Rf5+ {[%clk 00:20:39]} {[%emt 00:00:22]} 53. Kc4 {[%clk 00:20:38]}
{[%emt 00:00:32]} a5 {[%clk 00:16:43]} {[%emt 00:04:29]} 54. Re1+ {[%clk
00:19:33]} {[%emt 00:01:35]} Kd6 {[%clk 00:16:16]} {[%emt 00:00:56]} 55. Rd1+
{[%clk 00:19:38]} {[%emt 00:00:25]} Kc6 {[%clk 00:16:39]} {[%emt 00:00:08]} 56.
Rh1 {[%clk 00:19:56]} {[%emt 00:00:11]} Rf4+ {[%clk 00:16:58]} {[%emt
00:00:12]} 57. Kb3 {[%clk 00:20:15]} {[%emt 00:00:11]} a4+ {[%clk 00:17:22]}
{[%emt 00:00:06]} 58. Kc2 {[%clk 00:20:21]} {[%emt 00:00:24]} Rf2+ {[%clk
00:17:18]} {[%emt 00:00:34]} 59. Kd3 {[%clk 00:20:34]} {[%emt 00:00:16]} a3
{[%clk 00:17:11]} {[%emt 00:00:37]} 60. Kc4 {[%clk 00:20:11]} {[%emt 00:00:53]}
a2 {[%clk 00:17:18]} {[%emt 00:00:24]} 61. Rg1 {[%clk 00:19:22]} {[%emt
00:01:18]} Bg7 {[%clk 00:16:01]} {[%emt 00:01:47]} 62. Rg6+ {[%clk 00:17:02]}
{[%emt 00:02:49]} Bf6 {[%clk 00:15:25]} 0-1